Cogmind - Beta 16 @@@ ROGUE MODE // 2025.12.21 @ 18:09:09 Player: JuustuToug Result: Destroyed by 46-525(R) with Subdweller Laser Performance ------------- Evolutions (0) 0 Regions Visited (3) 600 Robots Destroyed (17) 85 Value Destroyed (209) 209 Prototype IDs (12) 240 Alien Tech Used (0) 0 Bonus (-189) -189 TOTAL SCORE: 945 Bonus ------- Friendly Fire -189 Cogmind --------- Core Integrity 0/250 Matter 300/300 Energy 99/100 System Corruption 0% Temperature Cool (15) Movement Core (50) Location -10/Subcaves Parts ------- > --- POWER (1) -------- (None) > --- PROPULSION (2) --- (None) > --- UTILITY (2) ------ Signal Interpreter > --- WEAPON (2) ------- (None) > --- INVENTORY (5) ---- Light Ion Engine ECM Suite Subdweller Laser Subdweller Beam Cannon Peak State ------------ > --- POWER ------------ Light Ion Engine > --- PROPULSION ------- Flight Unit Makeshift Flight Unit > --- UTILITY ---------- Sensor Array Signal Interpreter > --- WEAPON ----------- Medium Laser Light Assault Rifle > --- INVENTORY -------- Light Ion Engine Flight Unit Flight Unit ECM Suite Subdweller Machine Gun [Rating: 10] Favorites ----------- Power Light Ion Engine Engine Light Ion Engine Propulsion Flight Unit Treads Light Treads Flight Unit Flight Unit Utility Signal Interpreter Device Seismic Detector Storage Small Storage Unit Processor Signal Interpreter Weapon Medium Laser Energy Gun Medium Laser Energy Cannon Subdweller Beam Cannon Ballistic Gun Assault Rifle Special Weapon Plasma Cutter Build | -11 -10 -10 -10 ------- Run | Yrd Mat Min Sub Slots Evolved . | . . . . Power . | . . . . Propulsion . | . . . . Utility . | . . . . Weapon . | . . . . Parts Attached 23 | 8 5 4 6 Power 3 | 1 1 1 . Engine 3 | 1 1 1 . Core . | . . . . Reactor . | . . . . Propulsion 8 | 2 2 1 3 Treads 2 | 2 . . . Leg . | . . . . Wheel . | . . . . Hover . | . . . . Flight 6 | . 2 1 3 Utility 4 | 2 1 1 . Device 2 | 1 . 1 . Storage 1 | 1 . . . Processor 1 | . 1 . . Hackware . | . . . . Protection . | . . . . Artifact . | . . . . Weapon 8 | 3 1 1 3 Energy Gun 2 | 1 . . 1 Energy Cannon 1 | . . . 1 Ballistic Gun 4 | 2 . 1 1 Ballistic Cannon . | . . . . Launcher . | . . . . Special Weapon 1 | . 1 . . Impact Weapon . | . . . . Slashing Weapon . | . . . . Piercing Weapon . | . . . . Special Melee Weapon . | . . . . Unidentified Prototypes . | . . . . Parts Lost 7 | . 1 . 6 Power 2 | . 1 . 1 Propulsion 4 | . . . 4 Utility 1 | . . . 1 Weapon . | . . . . Highest Loss Streak 4 | . 1 . 4 To Critical Strikes . | . . . . Average Backups 4 | 1 3 4 4 Power 1 | . 1 1 1 Propulsion 1 | . 1 1 1 Utility . | . . 1 1 Weapon . | . . . . Tool/Special . | . . . . Unused Backups 3 | . 1 1 1 Power 1 | . . 1 . Propulsion . | . . . . Utility 1 | . . . 1 Weapon 1 | . 1 . . Tool/Special . | . . . . Average Slot Usage (%) 83 | . 95 100 75 Engine 12 | . 12 14 12 Treads 3 | . 15 . . Flight 23 | . 12 28 26 Device 8 | . 14 14 6 Storage 1 | . 7 . . Processor 11 | . 3 14 14 Energy Gun 10 | . 14 14 8 Ballistic Gun 6 | . 9 2 6 Special Weapon 2 | . 4 12 . Peak Build Rating 10 | 7 8 8 10 Average Rating 6 | 5 6 7 5 On Entrance 5 | . 7 8 7 Avg Prop Armor Cover (%) . | . . . . Naked Turns . | . . . . Heaviest Build 15 | 15 15 7 13 Greatest Support 40 | 40 40 8 8 Greatest Overweight (x) 1 | . . . 1 Average Overweight (x) . | . . . . Largest Inventory Capacity 8 | 8 8 5 5 Average Capacity 5 | 7 6 5 5 Most Carried 7 | 2 7 5 5 Average Carried 4 | 1 4 4 4 Final Capacity 8 | 8 5 5 5 Final Carried 5 | 2 5 4 4 Class Distribution -------------------- 82% | Mutant 17% | Scavenger-Mutant Dominant Class ---------------- Mutant | -10/Materials Scavenger-Mutant | -10/Mines Mutant | -10/Subcaves Resources | -11 -10 -10 -10 ----------- Run | Yrd Mat Min Sub Matter Collected 664 | 268 88 63 245 Remotely . | . . . . Salvage Created 425 | 149 119 43 114 Parts 35 | 8 14 5 8 Haulers Intercepted . | . . . . Recyclers Shooed . | . . . . Parts Field Recycled . | . . . . Retrieved Matter . | . . . . Parts Self-Destructed 3 | . . . 3 Prevented . | . . . . Parts Restored . | . . . . Kills | -11 -10 -10 -10 ------- Run | Yrd Mat Min Sub Combat Hostiles Destroyed 8 | . 4 3 1 Guns 8 | . 4 3 1 Classes Destroyed 9 | 2 4 . 3 Builder 1 | . 1 . . Tunneler 4 | 4 . . . Recycler 1 | 1 . . . Operator 1 | . 1 . . Swarmer 6 | . 3 3 . Grunt 1 | . 1 . . Artisan 1 | . . . 1 Subdweller 1 | . . . 1 Zionite 2 | . . . 2 Best Kill Streak 4 | 4 2 3 1 Combat Bots Only 3 | . 2 3 1 Max Kills in Single Turn 1 | 1 1 1 1 Gunslinging . | . . . . Exploded . | . . . . Melee . | . . . . Uniques/NPCs Destroyed . | . . . . Combat | -11 -10 -10 -10 -------- Run | Yrd Mat Min Sub Hostile Shots Fired 66 | . 28 16 22 Missed 21 | . 10 5 6 Hits 45 | . 18 11 16 Projectile 45 | . 18 11 16 Damage Taken 711 | . 160 87 464 Core 253 | . 9 35 209 Absorbed by Shields . | . . . . Core Remaining (%) 100 | 100 . . . Volleys Fired 138 | 12 15 5 106 Largest 2 | 2 2 2 1 Hottest 80 | 70 70 70 80 Shots Fired 166 | 24 28 9 105 Gun 149 | 24 27 7 91 Cannon 14 | . . . 14 Launcher . | . . . . Special 3 | . 1 2 . Kinetic 86 | 12 12 2 60 Thermal 80 | 12 16 7 45 Explosive . | . . . . Electromagnetic . | . . . . Robot Hit Streak 7 | 5 7 5 6 Robot Miss Streak 2 | 1 2 1 1 Penetration Max . | . . . . Secondary Targets . | . . . . Shots Hit Robots 54 | 17 17 7 13 Core Hits 22 | 6 8 3 5 Critical Kills . | . . . . Critical Parts Destroyed 1 | 1 . . . Critical Strikes 4 | 2 1 . 1 Burn 3 | 1 1 . 1 Destroy 1 | 1 . . . Melee Attacks . | . . . . Impact . | . . . . Slashing . | . . . . Piercing . | . . . . Sneak Attacks . | . . . . Combat Hostiles . | . . . . Follow-up Attacks . | . . . . Damage Inflicted 716 | 216 226 83 191 Guns 626 | 216 214 83 113 Cannons 78 | . . . 78 Explosions . | . . . . Melee . | . . . . Ramming . | . . . . Kinetic 236 | 141 76 19 . Thermal 480 | 75 150 64 191 Explosive . | . . . . Electromagnetic . | . . . . Impact . | . . . . Slashing . | . . . . Piercing . | . . . . Highest Corruption . | . . . . Average Corruption . | . . . . Corruption Purged . | . . . . Corruption Blocked . | . . . . Overload Shots . | . . . . Overflow Damage . | . . . . Projectiles . | . . . . Explosions . | . . . . Melee . | . . . . Knockbacks . | . . . . Impact . | . . . . Kinetic . | . . . . Secondary . | . . . . Self-Inflicted Damage . | . . . . Shots . | . . . . Rammed . | . . . . Targets Rammed . | . . . . Kicked . | . . . . Crushed . | . . . . Highest Temperature 63 | 63 28 52 16 Average Temperature 16 | 28 12 21 5 Received Heat Transfer 117 | . 18 . 99 Siege Activations . | . . . . Martial Activations . | . . . . Shielding Activations . | . . . . Robots Disrupted . | . . . . Combat Hostiles . | . . . . Robots Corrupted . | . . . . Combat Hostiles . | . . . . Parts Fried . | . . . . Impact Corruptions . | . . . . Robots Melted . | . . . . Combat Hostiles . | . . . . Parts Melted 1 | . . . 1 Heat Transferred 1517 | 296 518 185 518 Parts Sabotaged . | . . . . Parts Stolen . | . . . . Parts Stripped . | . . . . Power Chain Reactions . | . . . . Alert | -11 -10 -10 -10 ------- Run | Yrd Mat Min Sub Maximum Alert Level . | . . . . Low Security (%) 100 | 100 100 100 . Level 1 . | . . . . Level 2 . | . . . . Level 3 . | . . . . Level 4 . | . . . . Level 5 . | . . . . High Security . | . . . . Max Security . | . . . . Peak Influence 130 | 20 130 113 . Initial 48 | . . 48 . Average 46 | 3 66 45 . Influence Increases 385 | 25 245 115 . Destroy 0b10 Robot/C 140 | . 80 60 . Destroy 0b10 Robot/NC 35 | 25 10 . . Destroy Leader 30 | . 20 10 . Disable Machine 30 | . 30 . . Partial Spotted 15 | . 15 . . Lose Combat Pursuer 135 | . 90 45 . Influence Decreases 385 | 25 120 137 103 Entered New Map 132 | . . 77 55 Time Decay 243 | 25 110 60 48 Lost Part 10 | . 10 . . Squads Dispatched 2 | . 2 . . Investigation . | . . . . Extermination . | . . . . Reinforcement 2 | . 2 . . Assault . | . . . . Garrison . | . . . . Intercept . | . . . . Searches Triggered . | . . . . Construction Impeded . | . . . . Haulers Reinforced . | . . . . Active Scanning Responses . | . . . . Cargo Convoy Interrupts . | . . . . Stealth | -11 -10 -10 -10 --------- Run | Yrd Mat Min Sub Distress Signals 3 | . 3 . . Communications Jammed . | . . . . Distress Signals . | . . . . Times Spotted 35 | . 18 6 11 Peak Tracking Total 6 | . 6 3 5 Tactical Retreats 7 | . 2 1 4 Traps | -11 -10 -10 -10 ------- Run | Yrd Mat Min Sub Traps Triggered 1 | . . . 1 Indirectly . | . . . . Trap Hack Attempts . | . . . . Triggered . | . . . . Disarmed . | . . . . Reprogrammed . | . . . . Reused . | . . . . Traps Extracted . | . . . . Installed . | . . . . Triggered . | . . . . Machines | -11 -10 -10 -10 ---------- Run | Yrd Mat Min Sub Machines Disabled 2 | . 2 . . Max in Single Turn 1 | . 1 . . Machines Repaired . | . . . . Machines Dismantled 1 | . 1 . . Machines Sabotaged . | . . . . Overloaded Fab Kills . | . . . . Hacking | -11 -10 -10 -10 --------- Run | Yrd Mat Min Sub Machines Accessed 1 | . . . 1 Terminals . | . . . . Fabricators . | . . . . Repair Stations . | . . . . Recycling Units . | . . . . Scanalyzers . | . . . . Garrison Access . | . . . . Total Hacks 1 | . . . 1 Successful 1 | . . . 1 Failed . | . . . . Catastrophic . | . . . . Database Lockouts . | . . . . Manual . | . . . . Terminals . | . . . . Fabricators . | . . . . Repair Stations . | . . . . Recycling Units . | . . . . Scanalyzers . | . . . . Garrison Access . | . . . . Terminal Hacks 1 | . . . 1 Proto ID Catalog 1 | . . . 1 Fabricator Hacks . | . . . . Repair Station Hacks . | . . . . Recycling Unit Hacks . | . . . . Scanalyzer . | . . . . Garrison Access Hacks . | . . . . Unauthorized Hacks . | . . . . Terminals . | . . . . Fabricators . | . . . . Repair Stations . | . . . . Recycling Units . | . . . . Scanalyzers . | . . . . Garrison Access . | . . . . Data Cores Recovered . | . . . . Used . | . . . . Hacking Detections . | . . . . Full Trace Events . | . . . . Feedback Events . | . . . . Feedback Blocked . | . . . . Robot Schematics Acquired . | . . . . Robots Built . | . . . . Authchips . | . . . . Time . | . . . . Total Robot Build Rating . | . . . . Part Schematics Acquired . | . . . . Parts Built . | . . . . Authchips . | . . . . Time . | . . . . Total Part Build Rating . | . . . . Part Studies Acquired . | . . . . Parts Repaired . | . . . . Time . | . . . . Parts Recycled . | . . . . Recycled Matter . | . . . . Retrieved Matter . | . . . . Retrieved Components . | . . . . Parts Scanalyzed . | . . . . Part Schematics Acquired . | . . . . Parts Damaged . | . . . . Bothacking | -11 -10 -10 -10 ------------ Run | Yrd Mat Min Sub Used RIF Installer . | . . . . Robots Hacked . | . . . . Non-combat . | . . . . Combat . | . . . . Robot Hacks Applied . | . . . . Relay Couplers Released . | . . . . Fabnet Peak Effective % . | . . . . Robots Rewired . | . . . . Allies Hacked . | . . . . Hacks Repelled . | . . . . Allies | -11 -10 -10 -10 -------- Run | Yrd Mat Min Sub Total Allies . | . . . . Largest Group . | . . . . Highest-Rated Group . | . . . . Highest-Rated Ally . | . . . . Total Orders . | . . . . Ally Attacks . | . . . . Total Damage . | . . . . Kills . | . . . . Allies Corrupted . | . . . . Allies Melted . | . . . . Intel | -11 -10 -10 -10 ------- Run | Yrd Mat Min Sub Active Infowar (turns) 791 | 13 291 136 351 Sensors 359 | . . 8 351 Seismic 432 | 13 291 128 . Robot Analysis Total . | . . . . Derelict Logs Recovered 1 | . . 1 . Drone Launches . | . . . . Drone Recoveries . | . . . . Exploration | -11 -10 -10 -10 ------------- Run | Yrd Mat Min Sub Turns Passed 1356 | 128 291 136 801 Spaces Moved 1941 | 52 299 292 1298 Core 65 | 5 . . 60 Treads 118 | 47 71 . . Legs . | . . . . Wheels . | . . . . Hover . | . . . . Flight 1758 | . 228 292 1238 Fastest Speed 37 | 50 37 37 37 Average Speed 45 | 149 66 37 38 Slowest Speed 160 | 160 160 37 117 Overloaded Moves . | . . . . Propulsion Burnouts . | . . . . Robots Hopped 3 | . 1 . 2 Potential Cave-ins 15 | . . . 15 Cave-ins Triggered 1 | . . . 1 Exploration Rate (%) 44 | 6 53 68 51 Regions Visited 3 Branch Regions 2 Pre-discovered Areas 1 | . . . 1 Known Exits Taken 2 | . 1 1 . Unknown Exits Taken 1 | 1 . . . Scrap Searched 4 | . . 1 3 Spaces Dug 7 | . . . 7 Terrain Destroyed 14 | . . . 14 Melee . | . . . . Projectile 14 | . . . 14 AOE . | . . . . Terrain Rammed . | . . . . Walls Destroyed . | . . . . Machines Disabled . | . . . . Actions | -11 -10 -10 -10 --------- Run | Yrd Mat Min Sub Total 2222 | 74 353 309 1486 Wait 83 | 1 16 3 63 Move 1931 | 51 296 291 1293 Hop 3 | . 1 . 2 Pick Up 14 | 2 9 2 1 Fast Attach 10 | 7 1 . 2 Attach 6 | . 3 . 3 Detach 3 | . . . 3 Swap 14 | 1 1 4 8 Drop 14 | . 6 4 4 Fire 138 | 12 15 5 106 Melee . | . . . . Ram . | . . . . Kick . | . . . . Crush . | . . . . Escape Stasis 1 | . . . 1 Rewire . | . . . . Trap . | . . . . Miscellaneous 5 | . 5 . . Route ------- -11/Scrapyard -10/Materials -10/Mines (discovered 3 exits: [*Mat x2] / *Sub) -10/Subcaves (discovered 1 exit: *Mat) History --------- Turn | Location | Event 5 | -11/Scrapyard | Discovered new exit (range 14) 129 | -11/Scrapyard | Entered Materials 410 | -10/Materials | Discovered new exit (range 13) 420 | -10/Materials | Identified exit to Mines 420 | -10/Materials | Entered Mines 454 | -10/Mines | Discovered new exit (range 9) 513 | -10/Mines | Discovered new exit (range 3) 516 | -10/Mines | Learned Materials terminal intel 553 | -10/Mines | Discovered new exit (range 8) 555 | -10/Mines | Identified exit to Subcaves 556 | -10/Mines | Entered Subcaves 580 | -10/Subcaves | Shifting Twisted Machinery released Sub. Machine Gun 603 | -10/Subcaves | Discovered new exit (range 7) 605 | -10/Subcaves | Shifting Twisted Machinery released Mak. Flight Unit 605 | -10/Subcaves | Identified exit to Materials 627 | -10/Subcaves | A swath of the cavern ceiling suddenly collapsed 821 | -10/Subcaves | Crushed by falling debris 828 | -10/Subcaves | Build established: Mutant 839 | -10/Subcaves | Learned location of Zion (-7) 839 | -10/Subcaves | Met a Zionite searching for "candidates" 955 | -10/Subcaves | Visited 4L-MR0's lab 1100 | -10/Subcaves | A swath of the cavern ceiling suddenly collapsed 1136 | -10/Subcaves | Shifting Twisted Machinery released Sub. Laser 1303 | -10/Subcaves | Core integrity fell below 50% 1344 | -10/Subcaves | Lost 4 parts (1p3n) 1356 | -10/Subcaves | Core integrity fell below 20% 1357 | -10/Subcaves | Destroyed by 46-525(R) with Subdweller Laser Last Messages --------------- Powered Cannon 00965_ 4L-MR0 cries out in pain. 00965_ 4L-MR0 destroyed. 00971_ Acquired 10 matter. 00977_ N6-HYY(R): "SUBMAD!" 01043_ 4P-VJN(z) destroyed. 01049_ VO-288(z) destroyed. A swath of the cavern ceiling suddenly collapses. Sub. Laser falls loose from the Twisted Machinery. 01147_ Acquired Sub. Laser. 01148_ Dropped Med. Laser. 01185_ Acquired 11 matter. 01188_ Acquired 5 matter. 01299_ Lgt. Ion Engine destroyed. 01308_ Flight Unit destroyed. 01310_ Acquired 34 matter. 01313_ Flight Unit destroyed. 01315_ Acquired 5 matter. Map ----- +----------------------------------------------------+ | #####??????????????????# #####????????????????? | | ## #??????????????????## *# ##???????????????? | | ##??????????????????## # #???????????????? | | # ##??????????????????#% #???????????????? | | # #???????????????#### = ##???????????????? | | ## ###???##????????### %## #???????????????? | | ##?######### #???????# #???????????????? | | ###### ## ######## ##??????????????? | | ## #?# % ## # #??????????????? | | ##??# %% #??????????????? | | ###???# #"## %#?????????????? | | ########????## ### #### #????????????? | | ##??????????## ##?? #?? #????????????? | | ????????????# ##???? #?# #????????????? | | ????????????# % #?????? #?###????????????? | | ????????????# #??????? #???????????????? | | ????????????# % #??????? #??????????????? | | ????????????## ##???????? ?????????????? | | ?????????????# ######?????????? ###????????????? | | ?????????????# ##???????###?##?? ??????????????? | | ?????????????# #??????? ## #??##?????????????? | | ?????????????# #####???? #??##?????????????? | | ?????????????# ## ##### ## #?????????????? | | ?????????????# R # % #??????????????? | | ?????????????# % # #??????????????? | | ????????????## ## ## @ ##????????????????? | | ????????????# ########R ####?????????????? | | ??????????#### ### #?????????????? | | ?????????## # % %! #?????????????? | | ????????## # % ! ###?????????????? | | ????????# # # # #???????????????? | | ????????# #########% % ## #??????????????? | | ????????# ##??????### #? %#??????????????? | | ????????## ###??????## ##?? #??????????????? | | ?????????# #???????## #????##??????????????? | | ???????? ##????????## #????????????????????? | | ?????? ##???????????###????????????????????? | | ???? #???????????????????????????????????? | | ?? ???????????????????????????????????? | | ??????????????????????????????????? | | ?????????????????????????????????? | | # ????????????????????????????????? | | #### # ???????????????????????????????? | | ## ????###???????????????????????????????? | | ??#??????????????????????????????????????? | | ?????????????????????????????????????????? | | ? ?????????????????????????????????????????? | | ??? ??????????????????????????????????????????? | | ?????? ??????????????????????????????????????????? | | ?????????????????????????????????????????????????? | +----------------------------------------------------+ Best States ------------- Heat Dissipation 25 Energy Generation 10 Energy Capacity 250 Matter Stores 300 Matter Capacity 300 Sight Range 16 Robot Scan Range 14 Terrain Scan Density 10 Evasion (%) 62 Recoil Reduction 2 Item Schematics ----------------- None Robot Schematics ------------------ None Fabricated ------------ Nothing Repaired ---------- Nothing Studied --------- None Alien Tech Used ----------------- None Achievements -------------- None Challenges ------------ None Game ------ Seed GhostCorruptionBeamcaster Manual? 0 Play Time 00:15:31 Cumulative 249.0 hours Start 2025.12.21 @ 17:55:23 End 2025.12.21 @ 18:09:09 Sessions 1 Manual Loads 0 Difficulty Rogue Special Mode None Game No. 166 Rogue 166 Adventurer 0 Explorer 0 Win Type - Total 8 Types 5/0/1/1/0/0/0/1/0/0 Lore% 87 Gallery% 78 Achievement% 62 Wizard Run 0 Options --------- Layout 1 ASCII 0 Keyboard 0 Movement Mouse Keybinds 0 Fullscreen 2 Font 24/Smallcaps Map View 50x35 Zoom Use 0% Tactical HUD 1 Map Filters NONE Filters NONE Steam 1 RUN: 9d59a8ff-e23c-4bc5-b874-66fded9bf641